bitfinex/quotes_BTCUSD_20240729
["timestamp","ask_amount","ask_price","bid_price","bid_amount"]
[1722270685894,0.42705497,67201.0,67200.0,0.81986829]
[1722270686105,0.42705497,67201.0,67200.0,0.81495639]
[1722270686333,0.19509939,67201.0,67200.0,0.81495639]
[1722270686620,0.42706807,67201.0,67200.0,0.81495639]
[1722270686819,0.14309939,67201.0,67200.0,0.81495639]
[1722270687366,0.19309939,67201.0,67200.0,0.81495639]
[1722270687568,0.14309939,67201.0,67200.0,0.81495639]
[1722270688468,0.19509939,67201.0,67200.0,0.81495639]
[1722270688644,0.05,67203.0,67200.0,0.81495639]
[1722270688845,0.05,67201.0,67200.0,0.81495639]
[1722270689253,0.70906394,67201.0,67200.0,0.81495639]
[1722270689542,0.70906394,67201.0,67200.0,0.81307233]
[1722270689807,0.41144994,67201.0,67200.0,0.81307233]
[1722270690002,0.33990639,67201.0,67200.0,0.81307233]
[1722270690394,0.19109939,67201.0,67200.0,0.81307233]
[1722270690598,0.33990639,67201.0,67200.0,0.81307233]
[1722270690803,0.93513439,67201.0,67200.0,0.81399633]
[1722270691010,1.38267451,67201.0,67200.0,0.51880761]
[1722270691210,1.80328851,67201.0,67200.0,0.51880761]
[1722270691407,2.17838355,67201.0,67200.0,0.51530761]
[1722270691612,1.70328851,67201.0,67200.0,0.51530761]
[1722270691822,1.80328851,67201.0,67200.0,0.51530761]
[1722270691982,1.38267451,67201.0,67200.0,0.51530761]
[1722270692431,1.80363752,67201.0,67200.0,0.51530761]
[1722270692667,2.6556656,67201.0,67200.0,0.32884323]
[1722270692985,3.3425796,67201.0,67200.0,0.15603323]
[1722270693197,3.3425796,67201.0,67163.0,0.43926131]
[1722270693198,0.686911,67164.0,67163.0,0.01]
[1722270693390,0.686911,67164.0,67141.0,0.45537496]
[1722270693391,0.54124549,67151.0,67141.0,0.45537496]
[1722270693616,1.6669679,67151.0,67141.0,0.02611365]
[1722270693882,1.089699,67151.0,67141.0,0.02611365]
[1722270694076,1.43479349,67149.0,67141.0,0.02611365]
[1722270694422,1.57789288,67149.0,67141.0,0.02611365]
[1722270694621,1.9563797,67149.0,67141.0,0.02611365]
[1722270694830,1.08978449,67142.0,67141.0,0.02611365]
[1722270695071,0.54139849,67128.0,67123.0,0.00542775]
[1722270695298,1.09000149,67128.0,67123.0,0.00542775]
[1722270695501,1.08800149,67128.0,67123.0,0.00542775]
[1722270695720,0.002,67131.0,67100.0,0.09032415]
[1722270695721,0.149029,67101.0,67100.0,0.09032415]
[1722270695928,0.19424749,67101.0,67100.0,0.09032415]
[1722270696154,0.63540488,67101.0,67100.0,0.09032415]
[1722270696381,0.63540488,67101.0,67057.0,0.43191296]
[1722270696382,0.05,67079.0,67057.0,0.43191296]
[1722270696567,0.05,67086.0,67058.0,0.076]
[1722270696740,0.04521849,67095.0,67061.0,0.00478151]
[1722270696942,0.02338088,67074.0,67058.0,0.076]
[1722270697157,0.11676204,67085.0,67058.0,0.076]
[1722270697158,0.07154355,67085.0,67058.0,0.076]
[1722270697321,0.07154355,67085.0,67059.0,0.0471113]
[1722270697322,0.04421849,67075.0,67059.0,0.0471113]
[1722270697528,0.02338164,67071.0,67059.0,0.0471113]
[1722270697728,0.05,67095.0,67059.0,0.0471113]
[1722270698086,0.42926131,67107.0,67093.0,0.15374355]
[1722270698273,0.42926131,67107.0,67094.0,0.0015542]
[1722270698410,0.04421849,67115.0,67094.0,0.0015542]
[1722270698619,0.04421849,67103.0,67084.0,0.0015542]
[1722270698824,0.07154355,67124.0,67093.0,0.00678151]
[1722270699024,0.52926131,67165.0,67097.0,0.07154355]
[1722270699025,0.14309939,67118.0,67097.0,0.07154355]
[1722270699224,0.14309939,67118.0,67094.0,0.00783251]
[1722270699225,0.14309939,67118.0,67099.0,0.00678151]
[1722270699596,0.07154355,67124.0,67096.0,0.0015542]
[1722270699597,0.04321849,67111.0,67096.0,0.0015542]
[1722270699961,0.07154355,67124.0,67096.0,0.0015542]
[1722270699962,0.14309939,67110.0,67104.0,0.14902]
[1722270700158,0.14309939,67110.0,67095.0,0.0015542]
[1722270700377,0.04321849,67128.0,67105.0,0.00678151]
[1722270700576,0.17154355,67156.0,67119.0,0.00678151]
[1722270700577,0.04321849,67137.0,67119.0,0.00678151]
[1722270700721,0.04321849,67133.0,67114.0,0.00678151]
[1722270700932,0.42926131,67147.0,67121.0,0.148983]
[1722270700933,0.04321849,67144.0,67121.0,0.148983]
[1722270701135,0.72911631,67147.0,67120.0,0.00678151]
[1722270701136,0.04321849,67135.0,67120.0,0.00678151]
[1722270701345,0.02336653,67139.0,67121.0,0.01557705]
[1722270701659,0.16546592,67139.0,67128.0,0.00678151]
[1722270701864,0.16546592,67139.0,67137.0,0.0015542]
[1722270702012,0.16546592,67139.0,67126.0,0.00678151]
[1722270702214,0.16546592,67139.0,67138.0,0.08898151]
[1722270702215,0.02236653,67139.0,67138.0,0.08898151]
[1722270702444,0.02236653,67139.0,67138.0,0.0822]
[1722270702785,0.297707,67180.0,67152.0,0.07288151]
[1722270702944,0.42926131,67164.0,67152.0,0.07288151]
[1722270703147,0.07154355,67180.0,67152.0,0.07288151]
[1722270703148,0.04321849,67186.0,67162.0,0.00678151]
[1722270703358,0.04321849,67174.0,67097.0,0.10436253]
[1722270703564,0.002,67178.0,67138.0,0.28930858]
[1722270703565,0.1546732,67173.0,67138.0,0.28930858]
[1722270703804,0.05,67178.0,67146.0,0.28930858]
[1722270704002,0.05,67178.0,67138.0,0.672]
[1722270704003,0.05,67167.0,67140.0,0.28930858]
[1722270704310,0.05,67167.0,67129.0,1.199]
[1722270704311,0.05,67155.0,67129.0,0.744]
[1722270704600,0.1,67164.0,67129.0,0.744]
[1722270704601,0.15469449,67154.0,67132.0,0.43240797]
[1722270704801,0.05,67173.0,67132.0,0.43240797]
[1722270705005,0.42926131,67182.0,67130.0,0.7464]
[1722270705006,0.42926131,67165.0,67149.0,0.28930858]
[1722270705160,0.05,67178.0,67149.0,0.28930858]
[1722270705366,0.05,67178.0,67153.0,0.297825]
[1722270705367,0.2762093,67177.0,67153.0,0.297825]
[1722270705564,0.2762093,67177.0,67154.0,0.24309939]
[1722270705565,0.15466575,67176.0,67154.0,0.24309939]
[1722270705766,0.15466575,67175.0,67174.0,0.148867]
[1722270706124,0.02335012,67172.0,67154.0,0.24309939]
[1722270706252,0.07154355,67160.0,67150.0,0.02893086]
[1722270706454,0.05,67152.0,67151.0,0.0632]
[1722270706673,0.15466575,67152.0,67151.0,0.0632]
[1722270707316,0.17802009,67152.0,67151.0,0.0632]
[1722270707586,0.15466575,67152.0,67151.0,0.0632]
[1722270707780,0.15466575,67152.0,67151.0,0.07774]
[1722270708185,0.15466575,67152.0,67151.0,0.22083939]
[1722270708558,0.08806575,67152.0,67151.0,0.22083939]
[1722270708764,0.07154355,67159.0,67151.0,0.32083939]
[1722270708962,0.07154355,67152.0,67151.0,0.17774]
[1722270709142,0.07154355,67159.0,67152.0,0.025994]
[1722270709345,0.42926131,67156.0,67150.0,0.0822]
[1722270709674,0.05,67158.0,67088.0,0.0032]
[1722270709675,0.05,67133.0,67130.0,0.063]
[1722270709931,0.07154355,67131.0,67130.0,0.063]
[1722270710965,0.07154355,67131.0,67101.0,0.3315]
[1722270710966,0.1,67123.0,67120.0,0.0647]
[1722270711190,0.07154355,67121.0,67111.0,0.0753]
[1722270711566,0.07154355,67112.0,67111.0,0.0893]
[1722270712293,0.07154355,67112.0,67098.0,0.1444]
[1722270712530,0.07154355,67099.0,67098.0,0.1444]
[1722270714027,0.07154355,67099.0,67088.0,0.0032]
[1722270714028,0.49687331,67099.0,67088.0,0.0032]
[1722270714289,0.07154355,67089.0,67088.0,0.0032]
[1722270714556,0.30377392,67089.0,67088.0,0.01801]
[1722270714794,0.07154355,67099.0,67088.0,0.16110939]
[1722270715019,0.07154355,67099.0,67089.0,0.14309939]
[1722270715020,0.07154355,67092.0,67089.0,0.14309939]
[1722270715380,0.02337339,67110.0,67095.0,0.0003746]
[1722270715621,0.0496254,67120.0,67096.0,0.43240797]
[1722270715622,0.07154355,67103.0,67096.0,0.43240797]
[1722270715859,0.07154355,67103.0,67093.0,0.0003746]
[1722270716134,0.07154355,67103.0,67098.0,0.0003746]
[1722270717407,0.07154355,67099.0,67088.0,0.01801]
[1722270717666,0.05080485,67091.0,67088.0,0.01801]
[1722270717927,0.002,67105.0,67088.0,0.01801]
[1722270717928,0.0015542,67098.0,67088.0,0.01801]
[1722270718152,0.0496254,67093.0,67089.0,0.016291]
[1722270718382,0.07154355,67098.0,67089.0,0.016291]
[1722270718383,0.0496254,67095.0,67089.0,0.016291]
[1722270718811,0.02337469,67095.0,67089.0,0.016291]
[1722270719387,0.02337469,67095.0,67092.0,0.05]
[1722270719590,0.02337469,67095.0,67089.0,0.016291]
[1722270719811,0.02337469,67095.0,67090.0,0.0133391]
[1722270720030,0.02337469,67095.0,67088.0,0.0032]
[1722270720031,0.07154355,67091.0,67088.0,0.0032]
[1722270720276,0.02337469,67095.0,67090.0,0.05]
[1722270720617,0.02337469,67095.0,67088.0,0.19629939]
[1722270721046,0.0015542,67101.0,67088.0,0.19629939]
[1722270721047,0.0015542,67101.0,67090.0,0.05]
[1722270721248,0.07154355,67094.0,67091.0,0.01962994]
[1722270721515,0.07154355,67094.0,67078.0,0.009218]
[1722270721516,0.0496254,67079.0,67078.0,0.009218]
[1722270721718,0.12116895,67079.0,67078.0,0.009218]
[1722270721921,0.07154355,67079.0,67078.0,0.009218]
[1722270722123,0.31426834,67079.0,67078.0,0.009218]
[1722270722319,1.18172231,67079.0,67078.0,0.009218]
[1722270723068,1.47992005,67079.0,67078.0,0.009218]
[1722270723272,1.4179566,67079.0,67078.0,0.009218]
[1722270723477,1.4179566,67079.0,67050.0,0.0665]
[1722270723478,0.0496254,67058.0,67050.0,0.001]
[1722270723671,0.96062116,67058.0,67050.0,0.001]
[1722270723936,1.31892242,67058.0,67050.0,0.001]
[1722270724152,0.81954942,67058.0,67050.0,0.001]
[1722270724479,1.31693002,67058.0,67050.0,0.001]
[1722270724653,1.91542802,67058.0,67050.0,0.001]
[1722270724866,0.81955702,67058.0,67050.0,0.001]
[1722270725190,0.0994254,67058.0,67057.0,0.47510426]
[1722270725398,0.39164879,67058.0,67057.0,0.43191296]
[1722270725573,1.04629397,67058.0,67057.0,0.43191296]
[1722270725807,1.04829397,67058.0,67057.0,0.43191296]
[1722270726012,0.75004967,67058.0,67057.0,0.43191296]
[1722270726215,1.40853566,67058.0,67057.0,0.43191296]
[1722270726502,0.92233911,67058.0,67057.0,0.43176392]
[1722270726662,0.92233911,67058.0,67057.0,0.47495522]
[1722270726663,0.39364879,67058.0,67057.0,0.47495522]
[1722270726833,0.39364879,67058.0,67057.0,0.43176392]
[1722270727037,1.34655633,67058.0,67057.0,0.43176392]
[1722270727283,0.69189779,67058.0,67057.0,0.43176392]
[1722270727614,0.42497033,67058.0,67057.0,0.43176392]
[1722270727902,0.0494254,67073.0,67058.0,0.05]
[1722270728102,0.0494254,67068.0,67058.0,0.04317639]
[1722270728246,0.002,67081.0,67057.0,0.43176392]
[1722270728247,0.0494254,67060.0,67057.0,0.43176392]
[1722270728598,0.0494254,67058.0,67057.0,0.43176392]
[1722270728808,0.25434438,67058.0,67057.0,0.43176392]
[1722270728979,0.39744377,67058.0,67057.0,0.43176392]
[1722270729197,0.90495432,67058.0,67057.0,0.43116597]
[1722270729381,1.07923935,67058.0,67057.0,0.43116597]
[1722270729582,1.07923935,67058.0,67057.0,0.36456597]
[1722270729583,2.15995713,67058.0,67057.0,0.36456597]
[1722270729903,2.43365713,67058.0,67057.0,0.11506597]
[1722270730129,1.97910813,67058.0,67057.0,0.11506597]
[1722270730665,1.58085913,67058.0,67057.0,0.11506597]
[1722270730829,1.20321891,67058.0,67057.0,0.11506597]
[1722270731029,1.20322133,67058.0,67057.0,0.11506597]
[1722270731240,0.89681677,67058.0,67057.0,0.11506597]
[1722270731404,0.89681677,67058.0,67034.0,9e-05]
[1722270731405,0.0494254,67031.0,67030.0,0.10480992]
[1722270731602,0.39751985,67031.0,67030.0,0.10480992]
[1722270732423,0.24252479,67031.0,67030.0,0.10480992]
[1722270732622,0.24452479,67031.0,67030.0,0.10480992]
[1722270732855,0.17839167,67031.0,67030.0,0.11529091]
[1722270733055,0.02339897,67031.0,67030.0,0.11529091]
[1722270733390,0.02339897,67031.0,67030.0,0.26089091]
[1722270733815,0.02339897,67031.0,67030.0,0.25040992]
[1722270733816,0.26792376,67031.0,67030.0,0.25040992]
[1722270733949,0.42292277,67031.0,67030.0,0.10480992]
[1722270734151,0.22782338,67031.0,67030.0,0.10480992]
[1722270734378,0.12282437,67031.0,67030.0,0.10480992]
[1722270734783,0.07282437,67031.0,67030.0,0.10480992]
[1722270734982,0.26792376,67031.0,67030.0,0.10480992]
[1722270735183,0.25442272,67031.0,67030.0,0.11529091]
[1722270735975,0.25442272,67031.0,67030.0,0.10480992]
[1722270735976,0.39752211,67031.0,67030.0,0.10480992]
[1722270736266,0.54670611,67031.0,67030.0,0.10480992]
[1722270736479,0.69789111,67031.0,67030.0,0.10480992]
[1722270736676,0.39952211,67031.0,67030.0,0.10480992]
[1722270736996,0.39952211,67031.0,67030.0,0.11529091]
[1722270737198,0.25642272,67031.0,67030.0,0.11529091]
[1722270737478,0.39952211,67031.0,67030.0,0.10480992]
[1722270737761,0.15499732,67031.0,67030.0,0.10480992]
[1722270738205,0.0494254,67038.0,67030.0,0.10480992]
[1722270738377,0.15497149,67037.0,67031.0,0.01048099]
[1722270738576,0.0994254,67031.0,67030.0,0.10480992]
[1722270738777,0.39749838,67031.0,67030.0,0.10480992]
[1722270738979,0.84505138,67031.0,67030.0,0.10480992]
[1722270739392,1.86034407,67031.0,67030.0,0.10480992]
[1722270739592,1.86034407,67031.0,67030.0,0.10765413]
[1722270739593,1.86234407,67031.0,67030.0,0.10765413]
[1722270739759,2.16071307,67031.0,67030.0,0.10765413]
[1722270739987,1.80034467,67031.0,67030.0,6.93e-06]
[1722270740188,1.91236098,67031.0,67030.0,6.93e-06]
[1722270740397,1.1458114,67025.0,67024.0,9.313e-05]
[1722270740544,1.56405998,67025.0,67024.0,9.313e-05]
[1722270740753,1.20364767,67025.0,67024.0,9.313e-05]
[1722270740957,1.50204367,67025.0,67024.0,9.313e-05]
[1722270741156,0.90325167,67025.0,67024.0,9.313e-05]
[1722270741361,0.15497359,67025.0,67024.0,0.14679313]
[1722270741722,0.0994254,67048.0,67024.0,0.33989252]
[1722270742008,0.12202881,67075.0,67036.0,0.07154355]
[1722270742009,0.42926131,67046.0,67036.0,0.07154355]
[1722270742204,0.002,67061.0,67043.0,0.07154355]
[1722270742406,0.0994254,67062.0,67051.0,0.07154355]
[1722270742544,0.0494254,67046.0,67037.0,0.14418256]
[1722270742746,0.1014254,67059.0,67039.0,0.07154355]
[1722270742954,0.0607,67089.0,67048.0,0.07154355]
[1722270742955,0.0994254,67067.0,67048.0,0.07154355]
[1722270743187,0.0994254,67067.0,67038.0,0.123]
[1722270743188,0.0494254,67050.0,67049.0,0.0612]
[1722270743352,0.002,67049.0,67040.0,0.0612]
[1722270743554,0.02339851,67060.0,67040.0,0.0612]
[1722270743555,0.002,67055.0,67040.0,0.0612]
[1722270744221,0.05,67056.0,67040.0,0.0612]
[1722270744222,0.05,67052.0,67040.0,0.0612]
[1722270744439,0.002,67049.0,67040.0,0.0612]
[1722270744626,0.12281917,67052.0,67040.0,0.0612]
[1722270744627,0.002,67051.0,67040.0,0.0612]
[1722270744828,0.02339377,67052.0,67040.0,0.0612]
[1722270745266,0.02339377,67052.0,67042.0,0.0505746]
[1722270745470,0.0994254,67066.0,67044.0,0.0649]
[1722270745734,0.002,67063.0,67045.0,0.1033]
[1722270745939,0.002,67066.0,67046.0,0.1]
[1722270746152,0.002,67061.0,67046.0,0.1]
[1722270746359,0.002,67060.0,67046.0,0.1]
[1722270746558,0.0994254,67064.0,67046.0,0.1]
[1722270747019,0.0015542,67063.0,67045.0,0.1803]
[1722270747415,0.12096895,67046.0,67045.0,0.0835]
[1722270747620,0.0015542,67049.0,67045.0,0.0835]
[1722270747621,0.0035542,67049.0,67045.0,0.0835]
[1722270747821,0.1029796,67046.0,67045.0,0.0835]
[1722270748035,1.18150987,67046.0,67045.0,0.0032]
[1722270748236,1.18150987,67046.0,67013.0,0.063]
[1722270748237,0.0494254,67025.0,67013.0,0.063]
[1722270748444,0.002,67025.0,67013.0,0.063]
[1722270749049,0.02339652,67029.0,67013.0,0.063]
[1722270749280,0.0994254,67027.0,67013.0,0.063]
[1722270749498,0.18599979,67026.0,67013.0,0.063]
[1722270749657,0.02339652,67029.0,67013.0,0.063]
[1722270749859,0.41849552,67028.0,67013.0,0.063]
[1722270750066,0.02339652,67029.0,67013.0,0.063]
[1722270750067,0.002,67025.0,67013.0,0.063]
[1722270750270,0.002,67026.0,67013.0,0.063]
[1722270750497,0.88084324,67025.0,67013.0,0.063]
[1722270750646,0.66002578,67025.0,67013.0,0.063]
[1722270750841,1.10761978,67025.0,67013.0,0.063]
[1722270751047,1.45654014,67025.0,67013.0,0.063]
[1722270751256,1.45754014,67025.0,67013.0,0.063]
[1722270751642,1.82948018,67025.0,67013.0,0.063]
[1722270751772,1.68611836,67025.0,67013.0,0.063]
[1722270752178,1.98351436,67025.0,67012.0,4e-05]
[1722270752382,0.5460444,67021.0,67012.0,4e-05]
[1722270752580,1.68516036,67021.0,67012.0,4e-05]
[1722270752926,1.98357336,67021.0,67012.0,4e-05]
[1722270753127,1.17855814,67021.0,67020.0,0.55]
[1722270753378,1.17855814,67021.0,67020.0,0.5]
[1722270753379,1.45556582,67021.0,67020.0,0.5]
[1722270753575,0.65906896,67021.0,67020.0,0.5]
[1722270753779,0.4185432,67021.0,67020.0,0.5]
[1722270753979,0.6651746,67021.0,67020.0,0.5]
[1722270754222,0.74625104,67021.0,67020.0,0.5]
[1722270754455,1.04466404,67021.0,67020.0,0.5]
[1722270754689,1.10667059,67021.0,67020.0,0.5]
[1722270754900,1.15716024,67021.0,67020.0,0.5]
[1722270755102,1.59012371,67021.0,67020.0,0.5]
[1722270755326,1.45457621,67021.0,67020.0,0.5]
[1722270755494,1.88853801,67021.0,67020.0,0.5]
[1722270755694,1.59877817,67021.0,67020.0,0.5]
[1722270755894,1.59804993,67021.0,67020.0,0.5]
[1722270756097,1.58839677,67021.0,67020.0,0.55]
[1722270756323,1.28998377,67021.0,67020.0,0.55]
[1722270756603,1.61180131,67021.0,67020.0,0.55]
[1722270756735,0.84236442,67021.0,67020.0,0.55]
[1722270756937,0.47030291,67021.0,67020.0,0.55]
[1722270757166,0.7425281,67021.0,67020.0,0.55]
[1722270757385,0.65533169,67021.0,67020.0,0.55]
[1722270757605,0.4638069,67021.0,67020.0,0.55]
[1722270757816,0.4148069,67021.0,67020.0,0.55]
[1722270758266,0.18602878,67021.0,67020.0,0.550924]
[1722270758474,0.12401919,67021.0,67020.0,0.692924]
[1722270758644,0.002,67024.0,67020.0,0.692924]
[1722270758645,0.12401919,67023.0,67020.0,0.692924]
[1722270758855,0.18602063,67022.0,67020.0,0.642924]
[1722270759057,0.18602063,67021.0,67020.0,0.642924]
[1722270759259,0.18602063,67021.0,67020.0,0.500924]
[1722270759260,0.36865059,67021.0,67020.0,0.500924]
[1722270759483,0.72906784,67021.0,67020.0,0.500924]
[1722270759661,0.28144884,67021.0,67020.0,0.500924]
[1722270759893,0.43064284,67021.0,67020.0,0.500924]
[1722270760169,0.28143712,67021.0,67020.0,0.5510164]
[1722270760373,0.43064312,67021.0,67020.0,0.5510164]
[1722270760581,0.28143712,67021.0,67020.0,0.5510164]
[1722270760773,0.72905612,67021.0,67020.0,0.500924]
[1722270760948,0.18601172,67021.0,67020.0,0.500924]
[1722270761149,0.11882974,67025.0,67020.0,0.500924]
[1722270761347,0.002,67030.0,67020.0,0.500924]
[1722270761348,0.2446314,67021.0,67020.0,0.500924]
[1722270761548,1.17054881,67021.0,67020.0,0.500924]
[1722270761752,1.21318504,67021.0,67020.0,0.500924]
[1722270762118,1.51359804,67021.0,67020.0,0.500924]
[1722270762305,1.90503409,67021.0,67020.0,0.500924]
[1722270762511,1.60662109,67021.0,67020.0,0.500924]
[1722270762719,1.88896664,67021.0,67020.0,0.500924]
[1722270762852,2.34241912,67021.0,67020.0,0.500924]
[1722270764110,2.86180353,67021.0,67020.0,0.500924]
[1722270764314,2.96180353,67021.0,67020.0,0.21702398]
[1722270764488,1.1919654,67015.0,67014.0,0.0005]
[1722270764712,1.86217743,67015.0,67014.0,0.0005]
[1722270764914,1.67613005,67015.0,67014.0,0.0005]
[1722270765118,1.49008267,67015.0,67014.0,0.0005]
[1722270765329,1.62616519,67015.0,67014.0,0.0005]
[1722270765526,1.56412938,67015.0,67014.0,0.0005]
[1722270765877,1.62615273,67015.0,67014.0,0.0005]
[1722270765994,1.67615273,67015.0,67014.0,0.0005]
[1722270766385,1.62615273,67015.0,67014.0,0.0005]
[1722270766586,1.97459273,67015.0,67014.0,0.0005]
[1722270767389,0.8416824,67001.0,67000.0,0.8240895]
[1722270767571,1.32586973,67001.0,67000.0,0.8240895]
[1722270767777,1.62437273,67001.0,67000.0,0.8240895]
[1722270768403,1.91087158,67001.0,67000.0,0.7320895]
[1722270768723,1.97290453,67001.0,67000.0,0.7320895]
[1722270768854,0.67268492,67001.0,67000.0,0.80529845]
[1722270769067,0.002,67031.0,67018.0,0.596854]
[1722270769271,0.002,67031.0,67020.0,0.2756713]
[1722270769466,0.00865785,67060.0,67020.0,0.2756713]
[1722270769467,0.002,67036.0,67020.0,0.0764623]
[1722270769667,0.002,67036.0,67020.0,0.5240893]
[1722270769885,0.002,67036.0,67020.0,0.261809]
[1722270770092,0.002,67045.0,67020.0,0.81848869]
[1722270770297,8.9167,67021.0,67020.0,1.51532469]
[1722270770479,8.9167,67021.0,67020.0,1.16690669]
[1722270770673,8.9167,67021.0,67020.0,1.45146239]
[1722270770880,8.9167,67021.0,67020.0,1.51532469]
[1722270771745,8.8958,67021.0,67020.0,1.51532469]
[1722270771948,8.34711776,67021.0,67020.0,1.91374269]
[1722270772170,6.86759837,67021.0,67020.0,1.77284269]
[1722270772384,6.80352487,67021.0,67020.0,1.87284269]
[1722270772597,2.48403649,67021.0,67020.0,2.20117069]
[1722270772802,0.0233984,67028.0,67027.0,0.1]
[1722270772949,0.42926131,67058.0,67057.0,0.0138623]
[1722270773160,0.002,67052.0,67020.0,0.00663653]
[1722270773363,0.149189,67030.0,67023.0,0.0138623]
[1722270773566,0.149192,67028.0,67022.0,0.0138623]
[1722270773769,0.449607,67023.0,67022.0,0.0138623]
[1722270773969,0.002,67023.0,67022.0,0.0138623]
[1722270774177,0.002,67029.0,67028.0,0.0138623]
[1722270774642,0.53694256,67057.0,67022.0,0.14309939]
[1722270774643,0.002,67030.0,67029.0,0.0138623]
[1722270775022,0.002,67030.0,67029.0,0.15696169]
[1722270775760,0.002,67030.0,67029.0,0.0138623]
[1722270776016,0.002,67043.0,67041.0,0.0138623]
[1722270776208,0.002,67043.0,67042.0,0.0138623]
[1722270776382,0.002,67046.0,67045.0,0.0138623]
[1722270776679,0.0361377,67073.0,67045.0,0.0138623]
[1722270776680,0.298156,67079.0,67057.0,0.0138623]
[1722270776903,0.002,67060.0,67059.0,0.0138623]
[1722270777310,0.002,67061.0,67060.0,0.0138623]
[1722270777487,0.002,67062.0,67050.0,0.14309939]
[1722270777686,0.32158554,67070.0,67050.0,0.14309939]
[1722270777687,0.002,67063.0,67062.0,0.0138623]
[1722270777888,0.02338954,67070.0,67069.0,0.0138623]
[1722270778090,0.02538954,67070.0,67069.0,0.0138623]
[1722270778341,0.02338954,67070.0,67069.0,0.0138623]
[1722270778562,0.02338954,67070.0,67069.0,0.15696169]
[1722270778766,0.02338954,67070.0,67069.0,0.60426169]
[1722270778987,0.02338954,67070.0,67069.0,0.30606169]
[1722270779163,0.02338954,67070.0,67069.0,0.60426169]
[1722270779359,0.02338954,67070.0,67069.0,1.00246169]
[1722270779590,0.002,67082.0,67081.0,0.01236903]
[1722270779738,0.298096,67093.0,67086.0,0.01236903]
[1722270779937,0.002,67081.0,67080.0,0.01236903]
[1722270780140,0.0084,67094.0,67083.0,0.01236903]
[1722270780342,0.0084,67094.0,67071.0,0.05]
[1722270780343,0.002,67082.0,67081.0,0.01236903]
[1722270780503,0.0084,67094.0,67087.0,0.01236903]
[1722270780705,0.002,67086.0,67085.0,0.01236903]
[1722270780913,0.002,67090.0,67087.0,0.01236903]
[1722270781156,0.002,67090.0,67087.0,0.30452842]
[1722270781359,0.002,67090.0,67087.0,0.90076842]
[1722270781558,0.0084,67094.0,67093.0,0.01236903]
[1722270781711,0.00841,67106.0,67098.0,0.149035]
[1722270781918,0.00841,67106.0,67098.0,1.00064542]
[1722270782355,0.00841,67106.0,67089.0,0.01236903]
[1722270782579,0.00841,67106.0,67098.0,0.01236903]
[1722270782812,0.03177811,67099.0,67098.0,0.01236903]
[1722270783014,0.03177811,67099.0,67098.0,0.60257442]
[1722270783216,0.03177811,67099.0,67098.0,0.90064542]
[1722270783533,0.00372518,67115.0,67101.0,0.01236903]
[1722270783705,0.0648,67116.0,67101.0,0.01236903]
[1722270783706,0.13965359,67114.0,67101.0,0.01236903]
[1722270783918,0.0015542,67114.0,67106.0,0.01236903]
[1722270784127,0.0648,67116.0,67094.0,0.01236903]
[1722270784128,0.14682449,67113.0,67094.0,0.01236903]
[1722270784315,0.00110508,67112.0,67101.0,0.01236903]
[1722270784544,0.14309939,67112.0,67099.0,0.01236903]
[1722270784764,0.149026,67102.0,67101.0,0.00236903]
[1722270784933,0.14465359,67111.0,67106.0,0.00236903]
[1722270785157,0.0648,67116.0,67082.0,0.1]
[1722270785158,0.0648,67116.0,67107.0,0.00236903]
[1722270785363,0.1468245,67115.0,67105.0,0.00236903]
[1722270785648,0.07154355,67110.0,67105.0,0.00236903]
[1722270785788,0.07154355,67110.0,67087.0,0.14309939]
[1722270785789,0.00114818,67114.0,67109.0,0.00236903]
[1722270785991,0.07154355,67124.0,67113.0,0.00236903]
[1722270786200,0.42926131,67168.0,67139.0,0.15131203]
[1722270786420,0.42926131,67168.0,67123.0,0.07154355]
[1722270786421,0.42926131,67145.0,67144.0,0.00236903]
[1722270786629,0.42926131,67168.0,67145.0,0.00236903]
[1722270786960,0.42926131,67168.0,67132.0,0.04039022]
[1722270786961,0.0636,67152.0,67149.0,0.00236903]
[1722270787115,0.0636,67152.0,67148.0,0.00236903]
[1722270787312,0.0636,67152.0,67149.0,0.00236903]
[1722270787517,0.02336109,67152.0,67151.0,0.00236903]
[1722270788518,0.02336109,67152.0,67151.0,0.89005842]
[1722270788722,0.02336109,67152.0,67151.0,1.28789442]
[1722270788949,0.00839,67166.0,67165.0,0.44903003]
[1722270789153,0.00839,67166.0,67165.0,1.18767742]
[1722270789553,0.00839,67166.0,67165.0,1.28767742]
[1722270789799,0.0801,67194.0,67179.0,0.00236903]
[1722270789991,0.42926131,67197.0,67179.0,0.66357997]
[1722270790291,0.42926131,67197.0,67179.0,0.69203642]
[1722270790463,0.42926131,67197.0,67179.0,0.98974842]
[1722270790673,0.42926131,67196.0,67179.0,1.43200397]
[1722270790871,0.07154355,67195.0,67179.0,0.10236903]
[1722270791123,0.297652,67193.0,67179.0,0.00236903]
[1722270791476,0.07154355,67195.0,67179.0,0.00236903]
[1722270791661,0.07154355,67195.0,67179.0,0.29432442]
[1722270791864,0.148823,67194.0,67179.0,0.15122503]
[1722270792066,0.297625,67199.0,67179.0,0.29432442]
[1722270792067,0.0317386,67180.0,67179.0,0.29432442]
[1722270792265,0.0317386,67180.0,67179.0,0.44318042]
[1722270792538,0.00839,67180.0,67179.0,0.00236903]
[1722270792963,0.00839,67180.0,67179.0,0.446568]
[1722270793288,0.00839,67180.0,67179.0,0.29432442]
[1722270793413,0.00839,67180.0,67179.0,0.14546842]
[1722270793621,0.00839,67180.0,67179.0,0.29432442]
[1722270793825,0.00839,67180.0,67179.0,0.14309939]
[1722270794010,0.00839,67180.0,67179.0,0.29432442]
[1722270794212,0.00839,67180.0,67179.0,0.14546842]
[1722270794403,0.00839,67180.0,67179.0,0.00236903]
[1722270794628,0.00839,67180.0,67179.0,0.29432442]
[1722270794861,0.00839,67180.0,67179.0,0.59203642]
[1722270795064,0.00839,67180.0,67179.0,0.96274842]
[1722270795296,0.00839,67180.0,67179.0,1.41046042]
[1722270795495,0.00839,67180.0,67179.0,1.65817242]
[1722270795989,0.03173623,67180.0,67179.0,1.65817242]
[1722270796116,0.03173623,67180.0,67179.0,1.36046042]
[1722270797147,0.00839,67180.0,67179.0,1.36046042]
[1722270797347,0.00839,67180.0,67179.0,1.41046042]
[1722270797555,0.00839,67180.0,67179.0,0.00236903]
[1722270797556,0.15148939,67180.0,67179.0,0.00236903]
[1722270797917,0.0763,67169.0,67133.0,0.297915]
[1722270798123,0.07154355,67165.0,67145.0,0.42926131]